bitfinex-derivatives/quotes_ETHF0:USTF0_20251117
["timestamp","ask_amount","ask_price","bid_price","bid_amount"]
[1763402298744,0.00286734,3062.3,3061.8,0.3194]
[1763402299050,0.00286734,3062.3,3062.1,3.7373]
[1763402299241,0.00286734,3062.3,3062.1,3.73731]
[1763402299442,3.2078,3063.1,3062.1,3.73731]
[1763402299443,3.2078,3063.1,3062.7,0.52941]
[1763402299756,0.0346,3063.7,3062.7,0.52941]
[1763402299757,3.2078,3063.6,3063.2,0.3194]
[1763402300147,0.0346,3063.7,3063.2,0.3194]
[1763402300346,3.2078,3063.4,3063.2,0.3194]
[1763402300548,3.2078,3063.4,3062.7,3.2078]
[1763402300747,3.2078,3063.4,3062.6,0.004903]
[1763402300748,3.2078,3063.0,3062.6,0.004903]
[1763402301253,0.03816006,3063.7,3062.6,0.004903]
[1763402301254,0.03816006,3063.7,3063.5,0.52927]
[1763402301457,0.03816006,3063.7,3063.5,3.2078]
[1763402301652,0.03816006,3063.7,3063.2,0.3194]
[1763402302050,0.03816006,3063.7,3063.4,3.2078]
[1763402302249,0.03816006,3063.7,3063.5,0.52927]
[1763402302454,0.03816006,3063.7,3063.4,3.73709]
[1763402302756,3.2078,3064.5,3063.9,0.3194]
[1763402302957,3.2078,3064.5,3063.9,3.5272]
[1763402303849,3.2101926,3064.5,3063.9,0.3226705]
[1763402304242,0.0023926,3064.5,3064.1,3.2078]
[1763402304447,3.2078,3066.3,3065.3,0.3194]
[1763402304654,3.2078,3065.9,3065.3,0.3194]
[1763402304952,3.2078,3065.9,3065.5,0.00489387]
[1763402305457,3.21056993,3065.9,3065.5,0.00489387]
[1763402306250,3.21056993,3065.9,3065.6,0.3194]
[1763402306651,3.21056993,3065.9,3065.5,0.00489387]
[1763402307051,6.0,3065.8,3064.1,3.2078]
[1763402307245,3.2078,3064.9,3064.1,3.73697]
[1763402307448,3.2078,3064.9,3063.0,1.693]
[1763402307449,3.2078,3065.3,3064.8,0.2859]
[1763402307762,3.2078,3065.7,3064.8,0.2859]
[1763402308058,3.2078,3065.3,3064.9,0.00489387]
[1763402308358,0.00486348,3065.6,3064.9,0.00489387]
[1763402308559,0.00486348,3065.6,3064.9,3.21269387]
[1763402308962,3.2078,3065.3,3064.9,3.21269387]
[1763402309259,3.2078,3065.3,3064.9,0.00489387]
[1763402309458,3.2078,3065.3,3064.3,3.2078]
[1763402309658,0.10556348,3065.6,3059.7,8.36380912]
[1763402309659,3.2078,3064.5,3063.8,3.2078]
[1763402309862,3.2078,3064.1,3063.9,0.0032705]
[1763402310058,3.2078,3064.1,3062.8,3.2078]
[1763402310263,3.2078,3064.1,3061.4,11.765]
[1763402310264,3.2078,3062.9,3062.3,3.2078]
[1763402310454,3.2078,3062.9,3062.3,3.21269387]
[1763402310455,3.21269387,3062.9,3062.3,3.21269387]
[1763402311155,0.00761354,3062.9,3062.4,0.2859]
[1763402311658,0.00761354,3062.9,3062.4,0.81537]
[1763402311965,0.00761354,3062.9,3062.4,0.2859]
[1763402312150,3.2078,3062.8,3062.3,0.00845918]
[1763402312349,3.2078,3062.4,3062.3,0.00845918]
[1763402312549,3.2078,3062.8,3062.3,0.00845918]
[1763402313259,0.00761354,3062.9,3062.4,0.2859]
[1763402314362,0.00761354,3062.9,3062.6,3.2078]
[1763402315157,3.21541354,3062.9,3062.3,0.00845918]
[1763402316265,3.21541354,3062.9,3061.2,3.2078]
[1763402316266,3.2078,3062.5,3061.2,3.2078]
[1763402316450,3.2078,3062.0,3061.2,3.73747]
[1763402316652,3.2078,3062.1,3061.2,3.2078]
[1763402316851,3.2078,3061.7,3061.2,3.2078]
[1763402317266,3.2078,3061.7,3061.2,3.21204215]
[1763402319555,3.2078,3061.7,3061.2,0.00424215]
[1763402322363,3.2078,3062.1,3061.2,3.21204215]
[1763402322563,3.2078,3062.1,3061.3,0.52966]
[1763402322868,3.2078,3062.1,3061.6,0.2859]
[1763402323166,3.2078,3062.1,3061.2,3.21204215]
[1763402323365,3.2078,3061.7,3061.3,3.2078]
[1763402323867,3.2078,3061.7,3061.2,0.00424215]
[1763402324260,3.2078,3061.7,3061.3,3.2078]
[1763402326068,3.2078,3061.7,3061.2,0.00424215]
[1763402326567,3.2078,3061.7,3061.3,3.73744]
[1763402327071,3.2078,3061.7,3061.3,3.2078]
[1763402327267,3.2078,3061.7,3061.2,0.00424215]
[1763402327467,3.2078,3061.7,3061.3,3.2078]
[1763402327763,3.2078,3062.1,3061.4,0.52963]
[1763402327965,0.00761354,3062.9,3061.7,3.2078]
[1763402327966,3.2078,3062.5,3061.7,3.2078]
[1763402328171,3.2078,3062.6,3061.7,3.2078]
[1763402328668,3.2078,3062.1,3061.7,3.2078]
[1763402330269,3.2078,3062.1,3061.2,0.00424215]
[1763402331072,3.2078,3061.7,3061.2,0.00424215]
[1763402332775,3.2078,3061.3,3061.2,0.00424215]
[1763402333272,3.2078,3061.3,3061.2,4.215e-05]
[1763402338265,3.2078,3061.3,3061.2,0.49024215]
[1763402338468,3.2078,3061.3,3061.2,4.215e-05]
[1763402339476,3.2078,3061.7,3061.2,4.215e-05]
[1763402339673,0.72166888,3061.6,3061.2,4.215e-05]
[1763402339878,0.72166888,3061.6,3061.2,3.20784215]
[1763402340367,0.72166888,3061.6,3061.2,4.215e-05]
[1763402340573,0.1795,3061.2,3061.1,0.00489387]
[1763402340981,0.90116888,3061.2,3061.1,0.00489387]
[1763402341280,0.1795,3061.2,3061.1,0.00489387]
[1763402341665,1.12318841,3061.4,3061.1,0.00800201]
[1763402341870,0.72166888,3061.3,3061.1,0.00800201]
[1763402342066,0.72166888,3061.2,3061.1,0.00800201]
[1763402342474,1.84485729,3061.6,3061.1,0.44060201]
[1763402342675,0.72166888,3061.5,3061.2,0.2671]
[1763402342882,0.72166888,3061.4,3061.2,0.2671]
[1763402343082,0.72166888,3061.3,3061.2,0.6997]
[1763402343375,3.2078,3061.7,3061.2,0.6997]
[1763402343579,0.72280566,3061.6,3061.2,0.6997]
[1763402343981,0.72280566,3061.6,3061.1,0.00800201]
[1763402344184,0.72280566,3061.6,3060.4,0.2859]
[1763402344185,3.3873,3061.2,3060.4,3.4937]
[1763402344370,1.12318841,3061.0,3060.4,3.2078]
[1763402344578,0.72280566,3061.0,3060.4,3.2078]
[1763402344781,0.72280566,3061.0,3059.5,0.26218423]
[1763402344782,0.72280566,3061.0,3060.9,0.4326]
[1763402345077,0.1795,3060.9,3060.6,0.2671]
[1763402345285,0.72769953,3061.1,3060.7,3.2078]
[1763402345477,1.12808228,3061.1,3060.7,3.2078]
[1763402345677,1.12808228,3061.1,3060.6,0.26944328]
[1763402345678,3.2078,3061.0,3060.6,0.26944328]
[1763402345883,0.72280566,3060.9,3060.6,0.00234328]
[1763402346389,1.84599407,3060.9,3060.6,0.00234328]
[1763402346677,0.1795,3060.7,3060.6,0.00234328]
[1763402346879,0.1795,3060.7,3059.1,1.75873129]
[1763402346880,0.1795,3060.5,3059.5,3.2078]
[1763402347081,0.1795,3060.5,3058.8,0.79719]
[1763402347082,0.1795,3059.5,3059.1,3.2078]
[1763402347282,0.90230566,3059.5,3059.1,3.2078]
[1763402347890,0.90230566,3059.5,3059.1,3.21165493]
[1763402348485,4.11010566,3059.5,3059.1,3.21165493]
[1763402348687,0.1795,3059.2,3059.1,3.21165493]
[1763402348888,0.1795,3059.2,3059.1,0.00385493]
[1763402349286,0.1795,3059.1,3059.0,0.00490196]
[1763402349587,3.3873,3059.1,3059.0,0.00490196]
[1763402349780,4.11010566,3059.1,3059.0,0.00490196]
[1763402350181,3.3873,3059.1,3059.0,0.00490196]
[1763402350382,3.3873,3059.1,3059.0,0.00722723]
[1763402350984,3.2078,3059.1,3059.0,0.00722723]
[1763402352988,0.00490196,3059.5,3059.0,0.00722723]
[1763402354780,0.00490196,3059.5,3059.4,0.6997]
[1763402354981,0.00490196,3059.5,3059.4,3.9075]
[1763402355283,3.2078,3060.1,3060.0,0.6997]
[1763402355482,3.2078,3060.1,3060.0,0.2671]
[1763402355787,3.3834,3060.1,3059.4,3.4749]
[1763402356092,3.2078,3060.1,3060.0,0.2671]
[1763402356393,0.00490196,3060.4,3060.0,0.6997]
[1763402356587,0.00490196,3060.4,3060.0,0.2671]
[1763402357290,3.2078,3060.1,3060.0,0.2671]
[1763402357589,3.2078,3060.1,3059.4,0.2671]
[1763402357790,3.2078,3059.9,3059.4,0.2671]
[1763402358386,0.00490196,3060.4,3059.4,0.79709]
[1763402358591,0.00490196,3060.4,3059.6,3.2078]
[1763402358793,0.00490196,3060.4,3059.6,3.73775]
[1763402359891,3.2078,3060.0,3059.6,3.2078]
[1763402360588,3.21270196,3060.4,3059.6,3.2078]
[1763402361195,3.21270196,3060.4,3059.7,0.52993]
[1763402361485,3.21270196,3060.4,3059.6,3.2078]
[1763402361790,3.21270196,3060.4,3060.3,0.4443]
[1763402361991,3.21270196,3060.4,3060.0,0.242]
[1763402362696,3.21270196,3060.4,3060.0,0.77187]
[1763402362889,3.21270196,3060.4,3060.0,0.77188]
[1763402363190,3.21270196,3060.4,3060.0,0.242]
[1763402363385,3.21270196,3060.4,3060.3,0.4443]
[1763402363585,3.21270196,3060.4,3060.0,0.242]
[1763402364193,0.0797,3060.1,3059.4,0.79709]
[1763402364394,3.2078,3060.0,3059.4,0.79709]
[1763402364589,3.2078,3060.0,3059.4,0.2671]
[1763402364794,3.21270196,3060.4,3059.6,3.2078]
[1763402367888,3.21270196,3060.4,3059.6,3.73775]
[1763402368290,3.21270196,3060.4,3059.6,3.2078]
[1763402368492,3.21270196,3060.4,3060.0,0.2351]
[1763402370001,3.21270196,3060.4,3060.0,3.4429]
[1763402371003,0.00490196,3060.4,3060.0,3.97278]
[1763402371993,0.00490196,3060.4,3060.0,3.4429]
[1763402372189,0.0404,3060.1,3059.5,0.52996]
[1763402372692,0.0404,3060.1,3059.6,0.52995]
[1763402372900,0.00490196,3060.4,3060.0,0.2351]
[1763402373492,0.00490196,3060.4,3060.3,0.4074]
[1763402373896,0.00490196,3060.4,3060.0,0.2351]
[1763402374100,3.2078,3060.2,3060.0,0.2351]
[1763402374595,0.0404,3060.1,3059.5,0.52995]
[1763402374797,0.00490196,3060.4,3060.0,0.2351]
[1763402375404,3.2078,3060.1,3060.0,0.2351]
[1763402375993,3.2482,3060.1,3059.4,3.4749]
[1763402377302,3.2482,3060.1,3059.4,4.00488]
[1763402377493,3.2078,3060.1,3060.0,0.2351]
[1763402377688,3.2482,3060.1,3059.4,3.4749]
[1763402378099,3.2482,3060.1,3059.4,4.00488]
[1763402378300,3.2482,3060.1,3059.4,3.4749]
[1763402379500,3.2482,3060.1,3060.0,0.2351]
[1763402379703,3.2482,3060.1,3059.4,3.4749]
[1763402380201,3.2482,3060.1,3059.4,4.00488]
[1763402380706,3.2482,3060.1,3059.4,3.4749]
[1763402381803,3.2482,3060.1,3059.4,4.00488]
[1763402382205,3.2482,3060.1,3059.4,3.4749]
[1763402382403,0.73115408,3060.0,3059.4,3.4749]
[1763402383209,0.73162428,3059.9,3059.4,3.4749]
[1763402383409,3.2078,3060.1,3059.4,3.4749]
[1763402383599,0.73168987,3060.0,3059.4,3.4749]
[1763402384297,0.0404,3059.5,3059.4,0.2671]
[1763402384501,0.73168987,3059.6,3059.4,0.2671]
[1763402385304,0.73168987,3059.6,3059.0,3.21502723]
[1763402386599,3.2078,3059.2,3059.0,0.00722723]
[1763402386804,0.73146155,3059.1,3059.0,0.00722723]
[1763402387005,0.73146155,3059.1,3059.0,0.64972723]
[1763402387209,0.73146155,3059.1,3059.0,0.00722723]
[1763402388596,0.73146155,3059.1,3059.0,0.24232723]
[1763402389408,3.2078,3059.2,3059.0,0.24232723]
[1763402391306,1.13227814,3059.7,3059.0,0.24232723]
[1763402391307,3.2078,3059.6,3059.0,0.24232723]
[1763402391507,0.72950731,3059.5,3059.0,0.24232723]
[1763402392102,3.2078,3059.2,3059.0,0.24232723]
[1763402392708,3.2078,3059.6,3059.5,0.2351]
[1763402392912,3.91510901,3059.6,3059.5,0.6425]
[1763402393116,3.18568797,3059.6,3059.5,0.6425]
[1763402394515,3.2078,3060.0,3059.5,0.6425]
[1763402394718,0.72958267,3059.9,3059.5,0.6425]
[1763402395314,3.2078,3059.6,3059.0,0.24232723]
[1763402396021,0.72948537,3059.5,3059.0,0.24232723]
[1763402397820,3.2078,3059.2,3059.0,0.24232723]
[1763402399015,3.2078,3059.2,3059.1,0.4074]
[1763402399418,0.00490196,3060.4,3059.5,0.2271]
[1763402399419,3.2078,3059.6,3059.5,0.2271]
[1763402399616,3.2078,3060.0,3059.5,0.6182]
[1763402400423,3.2078,3059.6,3059.5,0.2271]
[1763402400614,3.2078,3060.0,3059.5,0.2271]
[1763402400818,0.72967877,3059.9,3059.5,0.2271]
[1763402401028,3.2078,3060.0,3059.5,0.2271]
[1763402401218,0.72996044,3059.9,3059.5,0.2271]
[1763402401723,0.72996044,3059.9,3059.2,3.2078]
[1763402401920,3.2078,3059.6,3059.0,0.24232723]
[1763402402115,3.2078,3059.6,3059.5,0.2271]
[1763402402322,3.2078,3060.0,3059.5,0.6182]
[1763402402523,0.73032041,3059.9,3059.5,0.2271]
[1763402402818,3.2078,3060.0,3059.5,0.2271]
[1763402403220,0.73022262,3059.9,3059.8,0.3911]
[1763402403415,3.21270196,3060.4,3060.3,0.3911]
[1763402403620,3.21270196,3060.4,3059.5,0.2271]
[1763402403816,0.1062,3059.1,3059.0,0.00722723]
[1763402404023,0.1062,3059.1,3058.5,0.2351]
[1763402404024,0.1062,3058.6,3058.5,0.2351]
[1763402404325,2.42877135,3059.5,3058.5,0.2351]
[1763402404326,3.2078,3058.7,3058.5,0.2351]
[1763402404623,3.2078,3059.2,3058.5,0.2351]
[1763402404827,0.72987796,3059.1,3058.5,0.2351]
[1763402405028,0.73477992,3059.1,3058.5,0.24380905]
[1763402405625,0.1062,3058.6,3058.5,0.00870905]
[1763402406822,3.2078,3058.8,3058.7,0.3911]
[1763402407022,3.2078,3058.8,3058.5,0.00870905]
[1763402407422,3.2078,3059.2,3059.1,0.3911]
[1763402407618,1.13227814,3059.9,3059.8,0.3911]
[1763402407819,3.2078,3061.0,3060.5,0.3911]
[1763402408022,0.73162019,3060.9,3060.6,0.2271]
[1763402408227,0.73162019,3060.9,3060.0,0.2271]
[1763402408228,0.1062,3060.6,3060.0,0.2271]
[1763402408546,0.1062,3060.1,3060.0,0.00490196]
[1763402408837,0.83746941,3060.1,3060.0,0.00490196]
[1763402410230,0.83746941,3060.1,3059.4,0.2271]
[1763402410526,3.2078,3059.8,3059.4,0.2271]
[1763402410931,4.34007814,3060.4,3059.4,0.2271]
[1763402411129,0.1013,3059.5,3058.8,3.4349]
[1763402411527,0.73105719,3059.5,3059.4,0.2271]
[1763402411835,1.13227814,3060.0,3059.4,0.2271]
[1763402412035,1.86335448,3060.0,3059.4,0.2271]
[1763402412234,0.73107634,3059.9,3059.4,0.2271]
[1763402412532,3.2078,3059.5,3058.8,0.00490196]
[1763402412731,0.73107634,3059.4,3058.8,0.23200196]
[1763402412931,4.90621721,3059.9,3058.8,0.23200196]
[1763402412932,4.34007814,3059.9,3059.1,3.2078]
[1763402413235,0.73070736,3059.8,3059.1,3.2078]
[1763402413533,0.73070736,3059.8,3059.7,0.3911]
[1763402413730,0.73070736,3059.8,3059.4,0.2271]
[1763402413934,0.1013,3059.5,3059.1,3.2078]
[1763402414833,0.1013,3058.6,3058.5,0.00380709]
[1763402415135,3.2078,3058.8,3058.5,0.00380709]
[1763402415828,3.2078,3059.2,3058.5,0.00380709]
[1763402416045,0.00490196,3059.0,3058.5,0.00380709]
[1763402416237,0.00490196,3059.0,3058.8,0.2271]
[1763402416832,0.00490196,3059.0,3058.9,0.3911]
[1763402417028,0.00490196,3059.0,3058.8,0.2271]
[1763402417530,0.00490196,3059.0,3058.9,0.3911]
[1763402418133,0.00490196,3059.0,3058.9,0.3547]
[1763402418440,1.13227814,3059.6,3058.8,0.2271]
[1763402418441,3.2078,3059.7,3058.8,0.2271]
[1763402418626,0.73243346,3059.6,3058.8,0.2271]
[1763402418831,3.2078,3059.3,3058.8,0.2271]
[1763402419138,3.2078,3059.3,3058.5,0.00380709]
[1763402419139,3.2078,3058.9,3058.5,0.00380709]
[1763402419535,0.00490196,3059.0,3058.5,0.00380709]
[1763402419737,0.00490196,3059.0,3058.8,0.209]
[1763402420134,3.2078,3058.9,3058.5,0.00380709]
[1763402420634,0.00490196,3059.0,3058.7,0.3547]
[1763402420943,0.00490196,3059.0,3058.9,0.3547]
[1763402422432,0.00490196,3059.0,3058.7,3.2078]
[1763402422433,0.0348,3058.9,3058.7,3.2078]
[1763402422634,0.0348,3058.8,3058.5,0.00380709]
[1763402422938,3.2078,3058.8,3057.0,1.96773129]
[1763402423129,3.2078,3057.7,3057.6,0.209]
[1763402423328,3.2078,3058.1,3057.6,0.209]
[1763402423939,3.21127045,3058.1,3057.6,0.21264274]
[1763402424447,3.21270196,3059.0,3058.3,0.209]
[1763402424739,0.00490196,3059.0,3058.7,3.2078]
[1763402425334,0.0073623,3059.0,3058.7,3.2078]
[1763402426130,3.2151623,3059.0,3058.3,3.4168]
[1763402426331,3.2078,3058.6,3058.3,0.209]
[1763402426537,3.2151623,3059.0,3058.3,3.4168]
[1763402427748,0.0073623,3059.0,3058.8,0.53009]
[1763402427946,3.2078,3059.4,3059.0,0.2279]
[1763402428142,3.2078,3059.8,3059.7,0.2279]
[1763402428640,3.2078,3060.2,3059.7,0.2279]
[1763402428947,2.26455628,3061.2,3060.4,0.2279]
[1763402428948,1.13227814,3061.2,3060.4,0.2279]
[1763402429241,3.2078,3060.5,3060.4,0.23118537]
[1763402430446,3.2078,3060.5,3060.4,0.00328537]
[1763402430635,9.94829072,3060.5,3059.7,0.2279]
[1763402430842,1.69841721,3060.9,3059.7,0.2279]
[1763402430843,3.2078,3059.8,3059.7,0.2279]
[1763402431049,3.2078,3060.2,3059.7,0.2279]
[1763402431237,3.2078,3060.2,3059.7,3.4357]
[1763402431543,3.2078,3060.2,3059.8,0.52992]
[1763402431741,3.2078,3060.9,3060.4,0.2279]
[1763402432052,3.2078,3060.9,3060.4,0.75771]
[1763402432246,3.2078,3060.9,3060.5,3.2078]
[1763402432941,0.00490196,3061.1,3060.5,3.2078]
[1763402433138,3.2078,3062.1,3061.1,0.2279]
[1763402433336,3.2078,3062.1,3061.8,0.2279]
[1763402433535,3.2078,3062.1,3061.1,0.2279]
[1763402433743,11.779,3063.3,3061.1,0.2279]
[1763402433744,3.2078,3061.2,3061.1,0.2279]
[1763402434144,0.0036936,3061.2,3061.1,0.2279]
[1763402435641,0.0036936,3061.2,3060.8,0.00490196]
[1763402436149,0.0036936,3061.2,3061.1,0.2279]
[1763402437044,3.2078,3062.7,3061.8,0.2279]
[1763402437350,3.2078,3061.9,3061.8,0.2279]
[1763402437555,3.2078,3061.9,3061.2,3.2078]
[1763402437735,3.2078,3061.3,3061.1,0.2279]
[1763402438048,3.21204719,3061.3,3061.1,0.2279]
[1763402438244,0.00424719,3061.3,3061.1,0.2279]
[1763402439042,0.00424719,3061.3,3060.8,0.00490196]
[1763402439652,3.2078,3061.0,3060.8,0.00490196]
[1763402442053,3.2078,3061.0,3060.4,0.2279]
[1763402442250,0.00424719,3061.3,3060.4,0.2279]
[1763402442251,3.2078,3060.6,3060.4,0.2279]
[1763402442551,3.2078,3061.0,3060.4,0.2279]
[1763402443041,3.2078,3060.6,3060.4,0.23280196]
[1763402444947,6.0,3060.5,3059.5,3.2078]
[1763402445149,3.2078,3060.1,3059.5,3.2078]
[1763402445553,3.2078,3060.1,3059.7,0.00390371]
[1763402446058,3.2078,3060.1,3059.7,0.23180371]
[1763402446655,3.2078,3060.7,3059.7,0.23180371]
[1763402446859,3.2078,3059.9,3059.7,0.23180371]
[1763402448058,3.2078,3059.9,3059.7,0.00390371]
[1763402448247,3.2078,3059.9,3059.0,0.2279]
[1763402448451,3.2078,3059.3,3058.7,3.07839245]
[1763402449053,3.2078,3059.3,3059.0,0.2279]
[1763402449359,3.2078,3059.3,3059.0,0.00362197]
[1763402449758,3.2078,3059.3,3059.0,0.23152197]
[1763402450451,0.00490196,3059.5,3059.0,0.76157197]
[1763402450653,0.00490196,3059.5,3059.0,0.23152197]
[1763402450853,3.21270196,3059.5,3059.0,0.23152197]
[1763402451758,3.21270196,3059.5,3059.0,0.00362197]
[1763402452652,3.21270196,3059.5,3059.0,0.23152197]
[1763402453472,0.00490196,3059.5,3059.2,3.2078]
[1763402453762,0.00490196,3059.5,3059.0,0.23152197]
[1763402454567,3.21270196,3059.5,3059.0,0.23152197]
[1763402454755,3.2078,3059.4,3059.0,0.23152197]
[1763402457056,3.21270196,3059.5,3059.0,0.23152197]
[1763402457665,0.00490196,3059.5,3059.0,0.76158197]
[1763402457866,0.00490196,3059.5,3059.0,0.23152197]
[1763402458165,3.2078,3059.4,3059.0,0.23152197]
[1763402459766,0.73944669,3059.3,3059.0,0.00362197]
[1763402460364,0.73944669,3059.3,3057.5,3.2078]
[1763402460563,3.2078,3057.7,3056.9,3.4357]
[1763402460963,3.2078,3057.7,3056.9,3.96612]
[1763402461471,3.21077285,3057.7,3056.9,3.4357]
[1763402462073,5.77894272,3057.7,3056.9,3.4357]
[1763402462372,3.2078,3057.2,3056.9,0.2279]
[1763402462577,3.2078,3057.2,3056.9,0.23033304]
[1763402462778,3.21077285,3057.7,3056.9,0.23033304]
[1763402463175,3.2078,3057.1,3056.9,0.23033304]
[1763402463380,3.2078,3057.5,3056.9,0.23033304]
[1763402465783,3.2078,3057.1,3056.2,0.2159]
[1763402465970,3.2078,3056.8,3056.2,0.2159]
[1763402466173,3.2078,3057.2,3056.2,0.2159]
[1763402466373,3.2078,3056.4,3056.2,0.2159]
[1763402466571,3.2078,3056.4,3056.0,3.2078]
[1763402466871,3.2078,3056.4,3056.0,3.21197732]
[1763402467073,3.2078,3056.8,3056.2,0.74643]
[1763402467284,3.2078,3056.8,3056.3,0.53053]
[1763402467478,3.2078,3057.3,3056.9,0.2159]
[1763402467975,3.2078,3057.3,3056.9,0.74632]
[1763402468179,3.2078,3057.3,3056.9,0.2159]
[1763402468367,0.00297285,3057.7,3057.6,0.2159]
[1763402468569,0.00490196,3058.0,3057.7,0.53027]
[1763402468773,0.00490196,3058.0,3057.7,0.53028]
[1763402468968,0.00490196,3058.0,3057.8,3.2078]
[1763402469184,3.2078,3058.8,3058.3,0.2159]
[1763402469570,3.21139676,3058.8,3058.3,0.21857769]
[1763402470181,3.2078,3058.4,3058.3,0.21857769]
[1763402470485,3.2078,3058.4,3058.3,0.00267769]
[1763402471179,3.2078,3058.4,3058.2,1.96e-06]
[1763402471384,3.2078,3058.4,3057.6,0.2159]
[1763402471680,3.2078,3058.4,3058.3,0.2159]
[1763402471876,0.00359676,3058.8,3058.3,0.2159]
[1763402471877,3.21139676,3058.8,3058.3,0.2159]
[1763402472078,3.2078,3058.4,3058.3,0.2159]
[1763402472279,3.2078,3058.4,3058.3,0.00383143]
[1763402472481,3.2078,3058.4,3057.8,3.2078]
[1763402473287,3.2078,3058.4,3057.6,0.2159]
[1763402473586,3.2078,3058.0,3057.6,0.2159]
[1763402473785,3.2078,3058.0,3057.6,0.21875412]
[1763402474078,3.2078,3058.0,3057.6,0.00285412]
[1763402474474,3.2078,3058.0,3057.6,0.21875412]
[1763402476178,3.2078,3058.4,3058.3,0.2159]
[1763402476386,3.21139676,3058.8,3058.4,0.53016]
[1763402476691,3.21139676,3058.8,3058.3,0.2159]
[1763402478782,3.2078,3058.4,3058.3,0.2159]
[1763402478980,0.00359676,3058.8,3057.6,0.21875412]
[1763402478981,3.21139676,3058.8,3057.6,0.21875412]
[1763402479182,0.73706154,3058.7,3057.9,3.2078]
[1763402480686,3.21139676,3058.8,3057.9,3.2078]
[1763402480687,3.21139676,3058.8,3057.9,3.73805]
[1763402481083,0.73709368,3058.7,3057.9,3.2078]
[1763402481478,3.2078,3058.4,3057.9,3.2078]
[1763402482691,3.2078,3058.4,3058.3,0.1927]
[1763402483585,3.21139676,3058.8,3058.3,0.1927]
[1763402483985,0.73668426,3058.7,3058.3,0.1927]
[1763402484686,3.2078,3058.4,3057.9,3.2078]
[1763402484884,0.73637823,3058.3,3057.6,0.21875412]
[1763402485797,3.2078,3058.0,3057.6,0.21875412]
[1763402486090,0.73658522,3057.9,3057.6,0.21875412]
[1763402486291,0.73658522,3057.9,3057.6,0.00285412]
[1763402486498,0.73658522,3057.9,3057.6,0.19555412]
[1763402487093,0.73658522,3057.9,3056.9,0.2159]
[1763402487295,3.2078,3057.5,3056.9,0.2159]
[1763402488197,3.2078,3057.5,3056.9,0.21931701]
[1763402489700,3.2078,3057.5,3056.9,0.74973701]
[1763402489998,3.2078,3057.5,3056.9,0.21931701]
[1763402489999,0.74591078,3057.4,3056.9,0.21931701]
[1763402491291,0.74591078,3057.4,3057.3,0.3195]
[1763402491600,0.74598439,3057.4,3056.9,0.21931701]
[1763402494402,0.74598439,3057.4,3057.3,0.3195]
[1763402494600,3.2078,3057.5,3057.4,0.3195]
[1763402494795,3.95337672,3057.5,3057.4,0.3195]
[1763402495396,3.95337672,3057.5,3056.9,0.21931701]
[1763402495604,0.74557672,3057.4,3056.9,0.21931701]
[1763402496102,3.2078,3057.1,3056.9,0.21931701]
[1763402497205,3.2078,3057.1,3057.0,0.3195]
[1763402497700,3.2078,3057.1,3056.9,0.21931701]
[1763402498206,0.00490196,3057.3,3056.9,0.21931701]
[1763402498904,0.00490196,3057.3,3057.2,0.3195]
[1763402499309,0.00490196,3057.3,3056.9,0.21931701]
[1763402500804,0.00490196,3057.3,3057.2,0.3195]
[1763402502100,0.00490196,3057.3,3056.9,0.21931701]
[1763402502408,0.00490196,3057.3,3056.9,0.74972701]
[1763402502595,0.00490196,3057.3,3057.2,0.3195]
[1763402505504,0.00490196,3057.3,3056.9,0.21931701]
[1763402506908,0.00490196,3057.3,3057.2,0.3195]
[1763402511006,0.00490196,3057.3,3057.1,3.2078]
[1763402511709,0.00490196,3057.3,3057.2,0.3195]
[1763402513013,3.2078,3058.3,3058.0,0.188]
[1763402513311,0.74821535,3058.2,3058.0,0.188]
[1763402513507,0.74821535,3058.2,3057.5,0.188]
[1763402513704,3.2078,3057.9,3057.5,0.188]
[1763402513906,0.74821535,3057.8,3057.5,0.188]
[1763402514102,1.88049349,3057.8,3057.4,0.00490196]
[1763402514309,3.2078,3057.5,3056.9,0.21931701]
[1763402514611,0.74821535,3057.4,3056.9,0.21931701]
[1763402516710,3.2078,3057.1,3056.9,0.21931701]
[1763402516901,0.74821535,3057.0,3056.9,0.21931701]
[1763402519110,0.74821535,3057.0,3056.9,0.00341701]
[1763402520016,0.74821535,3057.0,3056.9,0.27711701]
[1763402520422,1.13227814,3057.4,3057.0,0.1719]
[1763402520612,3.2078,3057.1,3057.0,0.1719]
[1763402520916,0.75006779,3057.1,3057.0,0.4456]
[1763402521212,3.2078,3057.1,3057.0,0.1719]
[1763402521420,3.95823491,3057.1,3056.9,0.00341701]
[1763402521618,0.75043491,3057.0,3056.9,0.00341701]
[1763402522516,0.75043491,3057.0,3056.5,0.188]
[1763402522820,3.2078,3056.7,3056.5,0.188]
[1763402523021,0.75043491,3056.6,3056.5,0.188]
[1763402523518,6.75343851,3056.6,3055.0,0.1719]
[1763402523719,3.2078,3055.3,3055.2,0.1719]
[1763402523919,3.95823491,3055.3,3055.2,0.1719]
[1763402524315,3.95823491,3055.3,3054.6,0.1719]
[1763402524511,3.2078,3055.1,3054.6,0.175451]
[1763402524722,3.2078,3054.7,3054.6,0.175451]
[1763402524910,3.2078,3054.7,3054.6,0.449151]
[1763402525221,3.2078,3055.6,3054.6,0.449151]
[1763402525428,3.2078,3055.2,3054.6,0.449151]
[1763402525922,0.755324,3055.1,3054.6,0.449151]
[1763402526117,3.2078,3055.2,3054.6,0.449151]
[1763402526319,3.2078,3054.8,3054.6,0.175451]
[1763402526620,3.2078,3054.8,3052.3,2.86858764]
[1763402526621,0.75417884,3054.7,3053.5,3.2078]
[1763402526922,0.75417884,3054.7,3053.0,0.53109]
[1763402526923,3.2078,3053.8,3053.1,3.2078]
[1763402527316,3.2078,3054.2,3053.1,3.2078]
[1763402527517,3.21101154,3054.2,3053.7,0.03680651]
[1763402530027,9.21101154,3054.2,3053.1,3.2078]
[1763402530319,3.2078,3053.2,3051.8,3.2078]
[1763402530523,3.2078,3052.6,3051.8,3.2078]
[1763402530735,0.26708169,3053.7,3052.7,0.1719]
[1763402531027,3.2078,3052.8,3052.7,0.0023202]
[1763402531223,3.2078,3052.8,3051.7,0.09064158]